lending/lending_fUSD_20260124
["ID","MTS","AMOUNT","RATE_DAILY","PERIOD"]
[403197135,1769265045953,-7589.02390178,0.00016639,2]
[403197136,1769265045962,-12858.52558043,0.00016639,2]
[403197137,1769265045971,-560.21,0.0001671,2]
[403197138,1769265045980,-334.5472959,0.00016768,2]
[403197139,1769265045989,-350.97,0.00016803,2]
[403197140,1769265045998,-3552.7,0.00016834,2]
[403197141,1769265046007,-500.0,0.00016849,2]
[403197142,1769265046017,-500.0,0.0001686,2]
[403197143,1769265046026,-2008.38128925,0.0001686,2]
[403197144,1769265046035,-867.75,0.00016871,2]
[403197145,1769265046051,-1000.0,0.00016899,2]
[403197146,1769265046069,-1000.0,0.00016927,2]
[403197147,1769265046078,-3552.7,0.0001694,2]
[403197148,1769265046087,-500.0,0.0001694,2]
[403197149,1769265046097,-1000.0,0.00016956,2]
[403197150,1769265046106,-1503.07183782,0.00016968,2]
[403197151,1769265046122,-1500.0,0.00016968,2]
[403197152,1769265046131,-1500.0,0.00016968,2]
[403197153,1769265046140,-472.01625507,0.00016968,2]
[403197154,1769265046149,-1500.0,0.00016968,2]
[403197155,1769265046158,-1500.0,0.00016968,2]
[403197156,1769265046167,-1500.0,0.00016968,2]
[403197157,1769265046176,-1500.0,0.00016968,2]
[403197158,1769265046186,-1500.0,0.00016968,2]
[403197159,1769265046195,-420.10334993,0.00016968,2]
[403197160,1769265046204,-1500.0,0.00016968,2]
[403197161,1769265046213,-1007.7084502,0.00016968,2]
[403197162,1769265046221,-409.91910471,0.00016968,2]
[403197163,1769265046231,-1519.79945563,0.00016968,2]
[403197164,1769265046240,-1500.0,0.00016968,2]
[403197165,1769265046249,-507.95507628,0.00016968,2]
[403197166,1769265046258,-1500.0,0.00016968,2]
[403197167,1769265046269,-1500.0,0.00016968,2]
[403197168,1769265046278,-613.07928255,0.00016968,2]
[403197169,1769265046287,-1500.0,0.00016968,2]
[403197170,1769265046296,-1500.0,0.00016968,2]
[403197171,1769265046305,-560.21,0.00016984,2]
[403197172,1769265046316,-127931.54456478,0.00017,2]
[403197173,1769265046326,-160.0,0.00017,2]
[403197174,1769265046336,-3207.48934641,0.00017,2]
[403197175,1769265046346,-952.63336648,0.00017043,2]
[403197176,1769265046356,-194.72792766,0.00017043,2]
[403197177,1769265046365,-3552.7,0.00017046,2]
[403197178,1769265046374,-4236.06670475,0.00017053,2]
[403197179,1769265046384,-1733.4895823,0.00017055,2]
[403197180,1769265046394,-1000.0,0.00017075,2]
[403197181,1769265046403,-393.45440139,0.00017077,2]
[403197182,1769265046413,-159.59843399,0.00017082,2]
[403197183,1769265046428,-1837.9390393,0.000171,2]
[403197184,1769265046438,-2000.0,0.000171,2]
[403197185,1769265046447,-286.14,0.00017105,2]
[403197186,1769265046457,-1000.0,0.00017112,2]
[403197187,1769265046467,-867.75,0.00017145,2]
[403197188,1769265046476,-3552.7,0.00017152,2]
[403197189,1769265046485,-10000.0,0.0001716,2]
[403197190,1769265046495,-1000.0,0.00017215,2]
[403197191,1769265046504,-152.0,0.00017221,6]
[403197192,1769265046513,-200.0,0.00017233,2]
[403197193,1769265046523,-1000.0,0.00017237,2]
[403197194,1769265046532,-560.21,0.00017258,2]
[403197195,1769265046541,-3552.7,0.00017258,2]
[403197196,1769265046550,-500.0,0.00017259,2]
[403197197,1769265046560,-500.0,0.00017259,2]
[403197198,1769265046569,-500.0,0.00017259,2]
[403197199,1769265046579,-500.0,0.00017259,2]
[403197200,1769265046587,-500.0,0.0001726,2]
[403197201,1769265046597,-800.0,0.0001726,2]
[403197202,1769265046606,-800.0,0.0001726,2]
[403197203,1769265046615,-800.0,0.0001726,2]
[403197204,1769265046625,-800.0,0.0001726,2]
[403197205,1769265046634,-800.0,0.0001726,2]
[403197206,1769265046643,-800.0,0.0001726,2]
[403197207,1769265046652,-800.0,0.0001726,2]
[403197208,1769265046661,-800.0,0.0001726,2]
[403197209,1769265046670,-800.0,0.0001726,2]
[403197210,1769265046679,-800.0,0.0001726,2]
[403197211,1769265046688,-800.0,0.0001726,2]
[403197212,1769265046697,-800.0,0.0001726,2]
[403197213,1769265046706,-800.0,0.0001726,2]
[403197214,1769265046716,-800.0,0.0001726,2]
[403197215,1769265046725,-800.0,0.0001726,2]
[403197216,1769265046734,-800.0,0.0001726,2]
[403197217,1769265046743,-800.0,0.0001726,2]
[403197218,1769265046753,-800.0,0.0001726,2]
[403197219,1769265046762,-800.0,0.0001726,2]
[403197220,1769265046772,-800.0,0.0001726,2]
[403197221,1769265046781,-800.0,0.0001726,2]
[403197222,1769265046791,-800.0,0.0001726,2]
[403197223,1769265046801,-800.0,0.0001726,2]
[403197224,1769265046810,-800.0,0.0001726,2]
[403197225,1769265046819,-800.0,0.0001726,2]
[403197226,1769265046828,-800.0,0.0001726,2]
[403197227,1769265046843,-800.0,0.0001726,2]
[403197228,1769265046852,-800.0,0.0001726,2]
[403197229,1769265046862,-800.0,0.0001726,2]
[403197230,1769265046871,-800.0,0.0001726,2]
[403197231,1769265046881,-800.0,0.0001726,2]
[403197232,1769265046889,-800.0,0.0001726,2]
[403197233,1769265046899,-800.0,0.0001726,2]
[403197234,1769265046908,-800.0,0.0001726,2]
[403197235,1769265046922,-800.0,0.0001726,2]
[403197236,1769265046931,-800.0,0.0001726,2]
[403197237,1769265046941,-800.0,0.0001726,2]
[403197238,1769265046951,-800.0,0.0001726,2]
[403197239,1769265046961,-800.0,0.0001726,2]
[403197240,1769265046979,-800.0,0.0001726,2]
[403197241,1769265046993,-800.0,0.0001726,2]
[403197242,1769265047002,-800.0,0.0001726,2]
[403197243,1769265047011,-800.0,0.0001726,2]
[403197244,1769265047022,-800.0,0.0001726,2]
[403197245,1769265047031,-800.0,0.0001726,2]
[403197246,1769265047041,-800.0,0.0001726,2]
[403197247,1769265047050,-800.0,0.0001726,2]
[403197248,1769265047060,-452.0,0.0001726,2]
[403197249,1769265047070,-500.0,0.0001726,2]
[403197250,1769265047080,-617.0,0.0001726,2]
[403197251,1769265047090,-200.0,0.0001726,2]
[403197252,1769265047102,-200.0,0.0001726,2]
[403197253,1769265047112,-200.0,0.0001726,2]
[403197254,1769265047121,-200.0,0.0001726,2]
[403197255,1769265047136,-200.0,0.0001726,2]
[403197256,1769265047146,-200.0,0.0001726,2]
[403197257,1769265047156,-200.0,0.0001726,2]
[403197258,1769265047166,-200.0,0.0001726,2]
[403197259,1769265047176,-200.0,0.0001726,2]
[403197260,1769265047186,-200.0,0.0001726,2]
[403197261,1769265047195,-200.0,0.0001726,2]
[403197262,1769265047205,-200.0,0.0001726,2]
[403197263,1769265047215,-200.0,0.0001726,2]
[403197264,1769265047226,-200.0,0.0001726,2]
[403197265,1769265047236,-200.0,0.0001726,2]
[403197266,1769265047246,-200.0,0.0001726,2]
[403197267,1769265047257,-200.0,0.0001726,2]
[403197268,1769265047267,-200.0,0.0001726,2]
[403197269,1769265047278,-200.0,0.0001726,2]
[403197270,1769265047290,-200.0,0.0001726,2]
[403197271,1769265047592,-200.0,0.0001726,2]
[403197272,1769265047603,-200.0,0.0001726,2]
[403197273,1769265047613,-200.0,0.0001726,2]
[403197274,1769265047622,-200.0,0.0001726,2]
[403197275,1769265047631,-200.0,0.0001726,2]
[403197276,1769265047641,-200.0,0.0001726,2]
[403197277,1769265047650,-200.0,0.0001726,2]
[403197278,1769265047660,-200.0,0.0001726,2]
[403197279,1769265047670,-200.0,0.0001726,2]
[403197280,1769265047679,-200.0,0.0001726,2]
[403197281,1769265047689,-200.0,0.0001726,2]
[403197282,1769265047698,-200.0,0.0001726,2]
[403197283,1769265047708,-200.0,0.0001726,2]
[403197284,1769265047720,-200.0,0.0001726,2]
[403197285,1769265047730,-200.0,0.0001726,2]
[403197286,1769265047740,-200.0,0.0001726,2]
[403197287,1769265047749,-188.0,0.0001726,2]
[403197288,1769265047759,-1000.0,0.0001726,2]
[403197289,1769265047768,-7589.02390178,0.00017269,2]
[403197290,1769265047778,-12858.52558043,0.00017269,2]
[403197291,1769265047787,-1000.0,0.00017358,2]
[403197292,1769265047797,-836.0,0.0001736,2]
[403197293,1769265047806,-3552.7,0.00017364,2]
[403197294,1769265047816,-1000.0,0.00017366,2]
[403197295,1769265047825,-150.0,0.00017374,2]
[403197296,1769265047836,-2000.0,0.000174,2]
[403197297,1769265047845,-867.75,0.00017419,2]
[403197298,1769265047855,-200.0,0.00017434,2]
[403197299,1769265047865,-150.0,0.00017469,2]
[403197300,1769265047875,-3552.7,0.0001747,2]
[403197301,1769265047886,-150.0,0.00017499,2]
[403197302,1769265047896,-9577.0107416,0.000175,2]
[403197303,1769265047906,-1189.38769854,0.000175,3]
[403197304,1769265047915,-5301.43742151,0.000175,2]
[403197305,1769265047925,-534.24079626,0.00017516,2]
[403197306,1769265047934,-1073.98879249,0.00017516,2]
[403197307,1769265047943,-2000.0,0.00017516,2]
[403197308,1769265047952,-2106.81558128,0.00017516,2]
[403197309,1769265047962,-2000.0,0.00017516,2]
[403197310,1769265047972,-2000.0,0.00017516,2]
[403197311,1769265047982,-2000.0,0.00017516,2]
[403197312,1769265047991,-2000.0,0.00017516,2]
[403197313,1769265048001,-2000.0,0.00017516,2]
[403197314,1769265048010,-2000.0,0.00017516,2]
[403197315,1769265048019,-2000.0,0.00017516,2]
[403197316,1769265048029,-348.0638206,0.00017516,2]
[403197317,1769265048041,-2000.0,0.00017516,2]
[403197318,1769265048052,-518.74,0.00017532,2]
[403197319,1769265048062,-1569.22282917,0.00017534,2]
[403197320,1769265048071,-1000.0,0.00017534,2]
[403197321,1769265048080,-3339.2211108,0.0001754,2]
[403197322,1769265048090,-997.17336156,0.00017555,2]
[403197323,1769265048108,-200.0,0.00017564,2]
[403197324,1769265048119,-3552.7,0.00017576,2]
[403197325,1769265048129,-1000.0,0.00017578,2]
[403197326,1769265048139,-987.88080104,0.00017591,2]
[403197327,1769265048149,-201.93286099,0.00017591,2]
[403197328,1769265048159,-151.3661,0.000176,2]
[403197329,1769265048169,-153.7074367,0.00017605,2]
[403197330,1769265048179,-3339.22111077,0.00017612,2]
[403197331,1769265048189,-5404.10438685,0.0001764,2]
[403197332,1769265048199,-592.59400824,0.0001764,2]
[403197333,1769265048209,-43354.97053025,0.0001764,2]
[403197334,1769265048219,-172.8753019,0.0001765,2]
[403197335,1769265048229,-150.0,0.00017673,2]
[403197336,1769265048239,-1683.0,0.00017674,2]
[403197337,1769265048249,-4609.0,0.00017677,2]
[403197338,1769265048259,-3552.7,0.00017682,2]
[403197339,1769265048270,-3339.22111077,0.00017684,2]
[403197340,1769265048279,-468.7,0.00017693,2]
[403197341,1769265048289,-1683.0,0.00017695,2]
[403197342,1769265048299,-7069.08068545,0.000177,2]
[403197343,1769265048309,-3396.08042674,0.000177,2]
[403197344,1769265048319,-3662.0,0.000177,2]
[403197345,1769265048328,-1000.0,0.00017709,2]
[403197346,1769265048339,-1000.0,0.00017713,2]
[403197347,1769265048348,-201.980302,0.00017726,2]
[403197348,1769265048358,-150.0,0.00017726,2]
[403197349,1769265048367,-152.45791979,0.00017726,2]
[403197350,1769265048376,-152.18149603,0.00017726,2]
[403197351,1769265048386,-150.62026844,0.00017726,2]
[403197352,1769265048396,-151.82706047,0.00017726,2]
[403197353,1769265048406,-150.93281041,0.00017726,2]
[403197354,1769265048416,-150.65129016,0.00017726,2]
[403197355,1769265048433,-150.0,0.00017726,2]
[403197356,1769265048444,-929.63069455,0.0001773,2]
[403197357,1769265048454,-328.57,0.00017733,2]
[403197358,1769265048468,-3967.0,0.00017739,2]
[403197359,1769265048478,-3339.22111077,0.00017756,2]
[403197360,1769265048488,-200.0,0.00017764,2]
[403197361,1769265048500,-1000.0,0.00017773,2]
[403197362,1769265048510,-328.57,0.00017774,2]
[403197363,1769265048519,-1000.0,0.00017777,2]
[403197364,1769265048529,-150.0,0.00017779,2]
[403197365,1769265048539,-1000.0,0.00017786,2]
[403197366,1769265048549,-3552.7,0.00017788,2]
[403197367,1769265048560,-37931.11459509,0.000178,2]
[403197368,1769265048570,-500.0,0.00017808,2]
[403197369,1769265048580,-1000.0,0.00017808,2]
[403197370,1769265048590,-328.57,0.00017815,2]
[403197371,1769265048600,-838.65936,0.0001782,2]
[403197372,1769265048610,-838.65936,0.0001782,2]
[403197373,1769265048620,-279.55312,0.0001782,2]
[403197374,1769265048630,-838.65936,0.0001782,2]
[403197375,1769265048640,-838.65935,0.0001782,2]
[403197376,1769265048650,-279.55312,0.0001782,2]
[403197377,1769265048665,-279.55312,0.0001782,2]
[403197378,1769265048675,-279.55312,0.0001782,2]
[403197379,1769265048685,-231.38369303,0.0001782,2]
[403197380,1769265048695,-3339.22111077,0.00017828,2]
[403197381,1769265048706,-150.0,0.00017836,2]
[403197382,1769265048716,-151.0,0.0001784,2]
[403197383,1769265048726,-151.0,0.0001784,2]
[403197384,1769265048736,-151.0,0.0001784,2]
[403197385,1769265048746,-151.0,0.0001784,2]
[403197386,1769265048756,-151.0,0.0001784,2]
[403197387,1769265048766,-151.0,0.0001784,2]
[403197388,1769265048776,-151.0,0.0001784,2]
[403197389,1769265048786,-151.0,0.0001784,2]
[403197390,1769265048796,-151.0,0.0001784,2]
[403197391,1769265048805,-151.0,0.0001784,2]
[403197392,1769265048816,-151.0,0.0001784,2]
[403197393,1769265048826,-151.0,0.0001784,2]
[403197394,1769265048836,-151.0,0.0001784,2]
[403197395,1769265048846,-151.0,0.0001784,2]
[403197396,1769265048860,-151.0,0.0001784,2]
[403197397,1769265048870,-151.0,0.0001784,2]
[403197398,1769265048880,-151.0,0.0001784,2]
[403197399,1769265048890,-151.0,0.0001784,2]
[403197400,1769265048900,-151.0,0.0001784,2]
[403197401,1769265048910,-151.0,0.0001784,2]
[403197402,1769265048920,-151.0,0.0001784,2]
[403197403,1769265048930,-151.0,0.0001784,2]
[403197404,1769265048940,-151.0,0.0001784,2]
[403197405,1769265048950,-151.0,0.0001784,2]
[403197406,1769265048960,-151.0,0.0001784,2]
[403197407,1769265048970,-151.0,0.0001784,2]
[403197408,1769265048980,-151.0,0.0001784,2]
[403197409,1769265048990,-151.0,0.0001784,2]
[403197410,1769265049000,-151.0,0.0001784,2]
[403197411,1769265049010,-151.0,0.0001784,2]
[403197412,1769265049020,-151.0,0.0001784,2]
[403197413,1769265049030,-151.0,0.0001784,2]
[403197414,1769265049043,-151.0,0.0001784,2]
[403197415,1769265049053,-151.0,0.0001784,2]
[403197416,1769265049064,-151.0,0.0001784,2]
[403197417,1769265049074,-151.0,0.0001784,2]
[403197418,1769265049084,-151.0,0.0001784,2]
[403197419,1769265049094,-151.0,0.0001784,2]
[403197420,1769265049104,-151.0,0.0001784,2]
[403197421,1769265049114,-151.0,0.0001784,2]
[403197422,1769265049124,-151.0,0.0001784,2]
[403197423,1769265049134,-151.0,0.0001784,2]
[403197424,1769265049144,-151.0,0.0001784,2]
[403197425,1769265049154,-151.0,0.0001784,2]
[403197426,1769265049164,-151.0,0.0001784,2]
[403197427,1769265049175,-151.0,0.0001784,2]
[403197428,1769265049185,-151.0,0.0001784,2]
[403197429,1769265049195,-158.0,0.0001784,2]
[403197430,1769265049204,-151.0,0.0001784,2]
[403197431,1769265049214,-151.0,0.0001784,2]
[403197432,1769265049224,-151.0,0.0001784,2]
[403197433,1769265049234,-151.0,0.0001784,2]
[403197434,1769265049247,-151.0,0.0001784,2]
[403197435,1769265049257,-151.0,0.0001784,2]
[403197436,1769265049267,-206.4391514,0.0001784,2]
[403197437,1769265049277,-166.39156659,0.0001784,2]
[403197438,1769265049287,-1000.0,0.00017843,2]
[403197439,1769265049297,-25000.0,0.00017847,3]
[403197440,1769265049307,-200.0,0.00017855,2]
[403197441,1769265049317,-500.0,0.00017855,2]
[403197442,1769265049327,-25000.0,0.00017856,3]
[403197443,1769265049337,-200.0,0.00017856,2]
[403197444,1769265049346,-190.76,0.0001786,2]
[403197445,1769265049356,-500.0,0.00017863,2]
[403197446,1769265049366,-25000.0,0.00017865,3]
[403197447,1769265049375,-1683.0,0.00017872,2]
[403197448,1769265049385,-1683.0,0.00017873,2]
[403197449,1769265049395,-25000.0,0.00017874,3]
[403197450,1769265049405,-190.76,0.00017874,2]
[403197451,1769265049415,-4041.49981384,0.00017879,2]
[403197452,1769265049432,-7129.68472589,0.00017879,2]
[403197453,1769265049443,-10665.5819515,0.00017879,2]
[403197454,1769265049453,-14430.9033,0.00017879,2]
[403197455,1769265049464,-25000.0,0.00017882,3]
[403197456,1769265049474,-190.75871706,0.00017887,2]
[403197457,1769265049484,-1000.0,0.00017891,2]
[403197458,1769265049499,-25000.0,0.00017891,3]
[403197459,1769265049510,-3552.7,0.00017894,2]
[403197460,1769265049520,-233.98,0.00017897,2]
[403197461,1769265049530,-320.25464445,0.000179,2]
[403197462,1769265049540,-25000.0,0.000179,3]
[403197463,1769265049551,-7609.85651561,0.000179,3]
[403197464,1769265049561,-7589.02390178,0.000179,2]
[403197465,1769265049570,-12858.52558043,0.000179,2]
[403197466,1769265049580,-190.80620809,0.000179,3]
[403197467,1769265049590,-9484.70157695,0.000179,2]
[403197468,1769265049600,-3339.22111077,0.000179,2]
[403197469,1769265049610,-6601.0,0.000179,2]
[403197470,1769265049620,-1000.0,0.00017915,2]
[403197471,1769265049630,-500.0,0.00017918,2]
[403197472,1769265049640,-233.98,0.00017922,2]
[403197473,1769265049650,-1000.0,0.0001793,2]
[403197474,1769265049660,-150.0,0.00017936,2]
[403197475,1769265049670,-1000.0,0.00017939,2]
[403197476,1769265049680,-1000.0,0.00017945,2]
[403197477,1769265049690,-151.0,0.00017946,2]
[403197478,1769265049700,-233.98,0.00017947,2]
[403197479,1769265049710,-152.0,0.00017947,7]
[403197480,1769265049720,-5800.0,0.00017949,2]
[403197481,1769265049730,-200.0,0.00017957,2]
[403197482,1769265049739,-5800.0,0.00017958,2]
[403197483,1769265049749,-5800.0,0.00017966,2]
[403197484,1769265049759,-1000.0,0.0001797,2]
[403197485,1769265049770,-500.0,0.0001797,2]
[403197486,1769265049779,-1000.0,0.0001797,2]
[403197487,1769265049789,-500.0,0.0001797,2]
[403197488,1769265049799,-1000.0,0.0001797,2]
[403197489,1769265049809,-500.0,0.0001797,2]
[403197490,1769265049829,-1000.0,0.0001797,2]
[403197491,1769265049839,-500.0,0.0001797,2]
[403197492,1769265049849,-1000.0,0.0001797,2]
[403197493,1769265049860,-1000.0,0.0001797,2]
[403197494,1769265049870,-1425.13914229,0.0001797,2]
[403197495,1769265049880,-500.0,0.0001797,2]
[403197496,1769265049890,-500.0,0.0001797,2]
[403197497,1769265049899,-601.31337833,0.0001797,2]
[403197498,1769265049909,-500.0,0.00017972,2]
[403197499,1769265049919,-500.0,0.00017972,2]
[403197500,1769265049930,-475.19870368,0.00017972,2]
[403197501,1769265049939,-15055.0,0.00017973,2]
[403197502,1769265049950,-500.0,0.00017973,2]
[403197503,1769265049959,-500.0,0.00017973,2]
[403197504,1769265049970,-500.0,0.00017973,2]
[403197505,1769265049979,-500.0,0.00017973,2]
[403197506,1769265049989,-500.0,0.00017973,2]
[403197507,1769265049999,-500.0,0.00017973,2]
[403197508,1769265050009,-163.10376799,0.00017973,2]
[403197509,1769265050018,-500.0,0.00017973,2]
[403197510,1769265050181,-500.0,0.00017973,2]
[403197511,1769265050190,-500.0,0.00017973,2]
[403197512,1769265050200,-500.0,0.00017973,2]
[403197513,1769265050209,-500.0,0.00017973,2]
[403197514,1769265050219,-500.0,0.00017973,2]
[403197515,1769265050228,-500.0,0.00017973,2]
[403197516,1769265050237,-335.93123339,0.00017973,2]
[403197517,1769265050247,-500.0,0.00017973,2]
[403197518,1769265050256,-500.0,0.00017973,2]
[403197519,1769265050265,-558.82608128,0.00017973,2]
[403197520,1769265050274,-500.0,0.00017973,2]
[403197521,1769265050283,-160.30101054,0.00017973,2]
[403197522,1769265050293,-500.0,0.00017973,2]
[403197523,1769265050302,-300.0,0.00017973,2]
[403197524,1769265050312,-500.0,0.00017973,2]
[403197525,1769265050321,-500.0,0.00017973,2]
[403197526,1769265050330,-208.11665623,0.00017973,2]
[403197527,1769265050340,-500.0,0.00017973,2]
[403197528,1769265050349,-500.0,0.00017973,2]
[403197529,1769265050362,-163.215227,0.00017973,2]
[403197530,1769265050371,-162.86883444,0.00017973,2]
[403197531,1769265050381,-500.0,0.00017973,2]
[403197532,1769265050390,-161.29695591,0.00017973,2]
[403197533,1769265050401,-573.18204786,0.00017973,2]
[403197534,1769265050412,-500.0,0.00017973,2]
[403197535,1769265050425,-500.0,0.00017973,2]
[403197536,1769265050435,-500.0,0.00017973,2]
[403197537,1769265050445,-160.04899722,0.00017973,2]
[403197538,1769265050454,-160.05160425,0.00017973,2]
[403197539,1769265050465,-160.0507877,0.00017973,2]
[403197540,1769265050474,-160.04998238,0.00017973,2]
[403197541,1769265050484,-160.03828545,0.00017973,2]
[403197542,1769265050494,-157.31967869,0.00017973,2]
[403197543,1769265050503,-500.0,0.00017973,2]
[403197544,1769265050512,-500.0,0.00017973,2]
[403197545,1769265050522,-500.0,0.00017973,2]
[403197546,1769265050531,-500.0,0.00017973,2]
[403197547,1769265050543,-500.0,0.00017973,2]
[403197548,1769265050553,-500.0,0.00017973,2]
[403197549,1769265050562,-500.0,0.00017973,2]
[403197550,1769265050572,-150.0,0.00017973,2]
[403197551,1769265050582,-336.33747242,0.00017973,2]
[403197552,1769265050591,-159.93585942,0.00017973,2]
[403197553,1769265050601,-160.04994992,0.00017973,2]
[403197554,1769265050611,-160.05079201,0.00017973,2]
[403197555,1769265050621,-160.03318119,0.00017973,2]
[403197556,1769265050631,-160.95253726,0.00017973,2]
[403197557,1769265050641,-162.47485834,0.00017973,2]
[403197558,1769265050651,-500.0,0.00017973,2]
[403197559,1769265050661,-161.20666181,0.00017973,2]
[403197560,1769265050671,-333.14308792,0.00017973,2]
[403197561,1769265050680,-500.0,0.00017973,2]
[403197562,1769265050689,-500.0,0.00017973,2]
[403197563,1769265050700,-521.52144255,0.00017973,2]
[403197564,1769265050709,-150.87644931,0.00017973,2]
[403197565,1769265050720,-500.0,0.00017973,2]
[403197566,1769265050730,-500.0,0.00017973,2]
[403197567,1769265050739,-161.7441045,0.00017973,2]
[403197568,1769265050748,-150.0,0.00017973,2]
[403197569,1769265050757,-500.0,0.00017973,2]
[403197570,1769265050767,-500.0,0.00017973,2]
[403197571,1769265050777,-500.0,0.00017973,2]
[403197572,1769265050786,-500.0,0.00017973,2]
[403197573,1769265050796,-500.0,0.00017973,2]
[403197574,1769265050805,-512.1744801,0.00017973,2]
[403197575,1769265050815,-500.0,0.00017973,2]
[403197576,1769265050825,-500.0,0.00017973,2]
[403197577,1769265050835,-160.05036115,0.00017973,2]
[403197578,1769265050844,-500.0,0.00017973,2]
[403197579,1769265050853,-500.0,0.00017973,2]
[403197580,1769265050863,-160.05242782,0.00017973,2]
[403197581,1769265050872,-180.05440168,0.00017973,2]
[403197582,1769265050881,-500.0,0.00017973,2]
[403197583,1769265050890,-500.0,0.00017973,2]
[403197584,1769265050899,-500.0,0.00017973,2]
[403197585,1769265050908,-500.0,0.00017973,2]
[403197586,1769265050917,-500.0,0.00017973,2]
[403197587,1769265050926,-508.83270828,0.00017973,2]
[403197588,1769265050935,-161.24700646,0.00017973,2]
[403197589,1769265050944,-500.0,0.00017973,2]
[403197590,1769265050953,-500.0,0.00017973,2]
[403197591,1769265050962,-500.0,0.00017973,2]
[403197592,1769265050972,-500.0,0.00017973,2]
[403197593,1769265050981,-500.0,0.00017973,2]
[403197594,1769265050991,-500.0,0.00017973,2]
[403197595,1769265051001,-164.56853003,0.00017973,2]
[403197596,1769265051012,-548.15607658,0.00017973,2]
[403197597,1769265051024,-208.57012707,0.00017973,2]
[403197598,1769265051033,-308.89625283,0.00017973,2]
[403197599,1769265051043,-500.0,0.00017973,2]
[403197600,1769265051052,-500.0,0.00017973,2]
[403197601,1769265051062,-284.08136107,0.00017973,2]
[403197602,1769265051071,-167.78129088,0.00017973,2]
[403197603,1769265051081,-169.51216753,0.00017973,2]
[403197604,1769265051090,-165.72236604,0.00017973,2]
[403197605,1769265051099,-500.0,0.00017973,2]
[403197606,1769265051109,-500.0,0.00017973,2]
[403197607,1769265051119,-511.74783648,0.00017973,2]
[403197608,1769265051127,-500.0,0.00017973,2]
[403197609,1769265051136,-500.0,0.00017973,2]
[403197610,1769265051148,-500.0,0.00017973,2]
[403197611,1769265051158,-166.43972344,0.00017973,2]
[403197612,1769265051168,-161.03754612,0.00017973,2]
[403197613,1769265051178,-500.0,0.00017973,2]
[403197614,1769265051188,-150.0,0.00017973,2]
[403197615,1769265051197,-5800.0,0.00017975,2]
[403197616,1769265051206,-150.0,0.00017976,2]
[403197617,1769265051215,-159.59843399,0.00017981,2]
[403197618,1769265051224,-500.0,0.00017982,2]
[403197619,1769265051233,-5800.0,0.00017983,2]
[403197620,1769265051242,-3967.0,0.00017985,2]
[403197621,1769265051251,-1123.82271307,0.0001799,3]
[403197622,1769265051259,-150.0,0.0001799,2]
[403197623,1769265051270,-715.10228288,0.0001799,2]
[403197624,1769265051279,-715.10228288,0.0001799,2]
[403197625,1769265051291,-5800.0,0.00017992,2]
[403197626,1769265051300,-152.734551,0.00017994,2]
[403197627,1769265051310,-1000.0,0.00017997,2]
[403197628,1769265051319,-151.0,0.00017997,2]
[403197629,1769265051328,-249.48172896,0.00017998,2]
[403197630,1769265051338,-551.95368049,0.00017998,2]
[403197631,1769265051347,-500.0,0.00017998,2]
[403197632,1769265051357,-165.97106181,0.00017998,2]
[403197633,1769265051366,-500.0,0.00017998,2]
[403197634,1769265051376,-500.0,0.00017998,2]